fUST/lending_fUST_20250729
["ID","MTS","AMOUNT","RATE_DAILY","PERIOD"]
[375790452,1753747849443,-160.0754546,0.00022274,2]
[375790454,1753747849452,-736.1161986,0.00022274,2]
[375790456,1753747849462,-160.0754546,0.00022274,2]
[375790458,1753747849472,-159.6986114,0.00022274,2]
[375790460,1753747849483,-151.0,0.0002235,7]
[375790462,1753747849494,-152.104275,0.0002235,7]
[375790464,1753747849504,-151.0,0.0002235,7]
[375790466,1753747849514,-151.0,0.0002235,7]
[375790468,1753747849527,-151.0,0.0002235,7]
[375790470,1753747849537,-151.0,0.0002235,7]
[375790472,1753747849546,-151.0,0.0002235,7]
[375790474,1753747849557,-303.858414,0.0002235,7]
[375790475,1753747849567,-303.858414,0.0002235,7]
[375790477,1753747849577,-649.936871,0.0002235,7]
[375790479,1753747849587,-649.936871,0.0002235,7]
[375790481,1753747849597,-12404.30895417,0.00022351,2]
[375790483,1753747849606,-30000.0,0.00022389,2]
[375790485,1753747849616,-5914.41,0.000224,7]
[375790487,1753747849626,-1442.16,0.000224,7]
[375790489,1753747849636,-460.0,0.00022465,2]
[375790491,1753747849646,-460.0,0.00022465,2]
[375790493,1753747849656,-460.0,0.00022465,2]
[375790495,1753747849666,-495.42,0.00022465,2]
[375790497,1753747849676,-333.10719066,0.00022465,2]
[375790499,1753747849686,-344.14,0.00022465,2]
[375790501,1753747849696,-2992.24,0.00022465,2]
[375790503,1753747849705,-460.0,0.00022465,2]
[375790505,1753747849715,-1408.18,0.00022465,2]
[375790507,1753747849725,-1292.36,0.00022465,2]
[375790509,1753747849735,-460.0,0.00022465,2]
[375790511,1753747849744,-963.32,0.00022465,2]
[375790513,1753747849753,-460.0,0.00022465,2]
[375790515,1753747849763,-460.0,0.00022465,2]
[375790517,1753747849773,-487.71,0.00022465,2]
[375790519,1753747849784,-460.0,0.00022465,2]
[375790521,1753747849794,-496.92,0.00022465,2]
[375790523,1753747849803,-460.0,0.00022465,2]
[375790525,1753747849813,-1161.04,0.00022465,2]
[375790526,1753747849822,-460.0,0.00022465,2]
[375790528,1753747849832,-1588.16,0.00022465,2]
[375790530,1753747849841,-460.0,0.00022465,2]
[375790532,1753747849851,-460.0,0.00022465,2]
[375790534,1753747849860,-460.0,0.00022465,2]
[375790536,1753747849869,-545.4,0.00022465,2]
[375790538,1753747849878,-460.0,0.00022465,2]
[375790540,1753747849888,-460.0,0.00022465,2]
[375790542,1753747849897,-460.0,0.00022465,2]
[375790544,1753747849907,-460.0,0.00022465,2]
[375790546,1753747849916,-3131.63,0.00022465,2]
[375790548,1753747849926,-1618.75,0.00022465,2]
[375790550,1753747849936,-460.0,0.00022465,2]
[375790552,1753747849946,-460.0,0.00022465,2]
[375790554,1753747849955,-460.0,0.00022465,2]
[375790568,1753747850080,-460.0,0.00022465,2]
[375790570,1753747850091,-460.0,0.00022465,2]
[375790572,1753747850101,-460.0,0.00022465,2]
[375790574,1753747850111,-460.0,0.00022465,2]
[375790576,1753747850120,-460.0,0.00022465,2]
[375790578,1753747850130,-859.79,0.00022465,2]
[375790580,1753747850139,-1195.35,0.00022465,2]
[375790582,1753747850149,-460.0,0.00022465,2]
[375790584,1753747850158,-460.0,0.00022465,2]
[375790586,1753747850168,-555.83,0.00022465,2]
[375790588,1753747850177,-1351.63,0.00022465,2]
[375790590,1753747850187,-460.0,0.00022465,2]
[375790592,1753747850196,-500.0,0.00022466,2]
[375790594,1753747850207,-1155.04694945,0.00022487,2]
[375790596,1753747850216,-1048.428167,0.0002249,2]
[375790598,1753747850226,-48575.11216603,0.0002249,7]
[375790600,1753747850235,-151.0,0.0002249,7]
[375790602,1753747850245,-151.0,0.0002249,7]
[375790604,1753747850254,-214.87999826,0.0002249,7]
[375790606,1753747850263,-151.0,0.0002249,7]
[375790608,1753747850274,-12634.73134317,0.0002249,7]
[375790610,1753747850284,-233.754417,0.0002249,7]
[375790612,1753747850294,-233.754417,0.0002249,7]
[375790614,1753747850303,-151.0,0.0002249,7]
[375790616,1753747850313,-246.40088443,0.000226,4]
[375790618,1753747850323,-465.9,0.000227,5]
[375790620,1753747850333,-460.0,0.00022739,2]
[375790622,1753747850343,-460.0,0.00022739,2]
[375790624,1753747850353,-460.0,0.00022739,2]
[375790626,1753747850363,-2992.24,0.00022739,2]
[375790628,1753747850373,-460.0,0.00022739,2]
[375790630,1753747850383,-1408.18,0.00022739,2]
[375790632,1753747850392,-1292.36,0.00022739,2]
[375790634,1753747850402,-460.0,0.00022739,2]
[375790636,1753747850412,-963.32,0.00022739,2]
[375790638,1753747850421,-76.94206948,0.00022739,2]
[375790648,1753747850533,-383.05793052,0.00022739,2]
[375790650,1753747850543,-460.0,0.00022739,2]
[375790652,1753747850552,-487.71,0.00022739,2]
[375790654,1753747850562,-460.0,0.00022739,2]
[375790656,1753747850571,-460.0,0.00022739,2]
[375790658,1753747850581,-151.0,0.00022739,7]
[375790660,1753747850591,-1161.04,0.00022739,2]
[375790662,1753747850601,-151.0,0.00022739,7]
[375790664,1753747850612,-151.0,0.00022739,7]
[375790666,1753747850622,-460.0,0.00022739,2]
[375790668,1753747850631,-1588.16,0.00022739,2]
[375790670,1753747850641,-460.0,0.00022739,2]
[375790672,1753747850651,-460.0,0.00022739,2]
[375790674,1753747850661,-460.0,0.00022739,2]
[375790676,1753747850671,-545.4,0.00022739,2]
[375790678,1753747850680,-460.0,0.00022739,2]
[375790680,1753747850691,-460.0,0.00022739,2]
[375790682,1753747850700,-460.0,0.00022739,2]
[375790684,1753747850710,-460.0,0.00022739,2]
[375790685,1753747850719,-3131.63,0.00022739,2]
[375790687,1753747850728,-1618.75,0.00022739,2]
[375790689,1753747850738,-460.0,0.00022739,2]
[375790690,1753747850747,-460.0,0.00022739,2]
[375790692,1753747850757,-460.0,0.00022739,2]
[375790694,1753747850767,-460.0,0.00022739,2]
[375790696,1753747850776,-460.0,0.00022739,2]
[375790697,1753747850786,-460.0,0.00022739,2]
[375790699,1753747850796,-205.71442385,0.00022739,2]
[375790701,1753747850806,-303.858414,0.00022739,7]
[375790703,1753747850816,-460.0,0.00022739,2]
[375790704,1753747850825,-303.858414,0.00022739,7]
[375790706,1753747850835,-859.79,0.00022739,2]
[375790708,1753747850844,-1195.35,0.00022739,2]
[375790709,1753747850854,-460.0,0.00022739,2]
[375790711,1753747850864,-649.936871,0.00022739,7]
[375790713,1753747850873,-555.83,0.00022739,2]
[375790714,1753747850883,-1351.63,0.00022739,2]
[375790716,1753747850892,-649.936871,0.00022739,7]
[375790718,1753747850902,-460.0,0.00022739,2]
[375790720,1753747850912,-381.0,0.0002274,2]
[375790722,1753747850922,-499.999999,0.0002278,2]
[375790723,1753747850931,-11665.39837505,0.000229,7]
[375790725,1753747850941,-151.812409,0.00022905,3]
[375790727,1753747850951,-151.0,0.00022929,7]
[375790728,1753747850961,-151.0,0.00022929,7]
[375790730,1753747850971,-151.0,0.00022929,7]
[375790732,1753747850980,-151.0,0.00022929,7]
[375790733,1753747850990,-151.0,0.00022929,7]
[375790735,1753747850999,-151.0,0.00022929,7]
[375790737,1753747851009,-151.0,0.00022929,7]
[375790738,1753747851018,-151.0,0.00022929,7]
[375790740,1753747851029,-151.0,0.00022929,7]
[375790742,1753747851039,-151.0,0.00022929,7]
[375790744,1753747851049,-151.0,0.00022929,7]
[375790745,1753747851058,-151.0,0.00022929,7]
[375790747,1753747851068,-151.0,0.00022929,7]
[375790749,1753747851078,-151.0,0.00022929,7]
[375790750,1753747851087,-151.0,0.00022929,7]
[375790752,1753747851098,-151.0,0.00022929,7]
[375790754,1753747851108,-151.0,0.00022929,7]
[375790756,1753747851118,-151.812409,0.00022936,2]
[375790757,1753747851128,-200.0,0.00022948,15]
[375790759,1753747851138,-200.0,0.00022948,15]
[375790761,1753747851147,-200.0,0.00022948,15]
[375790763,1753747851157,-200.0,0.00022948,15]
[375790764,1753747851167,-200.0,0.00022948,15]
[375790766,1753747851176,-200.0,0.00022948,15]
[375790768,1753747851186,-366.0,0.00022948,15]
[375790769,1753747851195,-500.0,0.00022973,2]
[375790771,1753747851205,-500.0,0.00022973,2]
[375790773,1753747851216,-500.0,0.00022973,2]
[375790775,1753747851226,-500.0,0.00022973,2]
[375790777,1753747851235,-151.812409,0.00022986,3]
[375790779,1753747851245,-284.261084,0.00022999,7]
[375790780,1753747851254,-284.261084,0.00022999,7]
[375790782,1753747851264,-1967.33134317,0.00023,2]
[375790784,1753747851274,-9810.06450645,0.00023,2]
[375790785,1753747851284,-347.89479617,0.00023,2]
[375790787,1753747851295,-53062.92266935,0.00023,2]
[375790789,1753747851304,-1337.60374116,0.00023,2]
[375790791,1753747851314,-3000.0,0.00023,2]
[375790793,1753747851324,-1428.45,0.00023,2]
[375790795,1753747851333,-21473.78,0.00023,2]
[375790796,1753747851343,-49381.50782039,0.00023,14]
[375790798,1753747851353,-160.0,0.00023,2]
[375790800,1753747851363,-151.0,0.00023,7]
[375790801,1753747851372,-151.0,0.00023,7]
[375790803,1753747851382,-151.0,0.00023,7]
[375790805,1753747851391,-151.0,0.00023,7]
[375790807,1753747851401,-151.0,0.00023,7]
[375790809,1753747851411,-151.0,0.00023,7]
[375790810,1753747851421,-151.0,0.00023,7]
[375790812,1753747851431,-233.754417,0.00023,7]
[375790814,1753747851440,-233.754417,0.00023,7]
[375790816,1753747851450,-151.0,0.00023,7]
[375790818,1753747851459,-929.0,0.0002301,2]
[375790819,1753747851469,-3000.0,0.0002301,2]
[375790821,1753747851482,-460.0,0.00023013,2]
[375790823,1753747851491,-460.0,0.00023013,2]
[375790825,1753747851501,-460.0,0.00023013,2]
[375790827,1753747851511,-2992.24,0.00023013,2]
[375790828,1753747851523,-151.0,0.00023013,7]
[375790830,1753747851534,-460.0,0.00023013,2]
[375790832,1753747851544,-151.0,0.00023013,7]
[375790834,1753747851554,-1408.18,0.00023013,2]
[375790836,1753747851564,-1292.36,0.00023013,2]
[375790837,1753747851575,-316.850402,0.00023013,7]
[375790839,1753747851585,-316.850402,0.00023013,7]
[375790841,1753747851595,-460.0,0.00023013,2]
[375790843,1753747851605,-963.32,0.00023013,2]
[375790844,1753747851614,-343.64179746,0.00023013,2]
[375790846,1753747851624,-460.0,0.00023013,2]
[375790848,1753747851634,-487.71,0.00023013,2]
[375790850,1753747851643,-460.0,0.00023013,2]
[375790852,1753747851653,-314.98,0.00023013,2]
[375790853,1753747851663,-151.0,0.00023013,7]
[375790855,1753747851674,-1161.04,0.00023013,2]
[375790857,1753747851684,-175.130423,0.00023013,7]
[375790859,1753747851693,-151.0,0.00023013,7]
[375790861,1753747851703,-460.0,0.00023013,2]
[375790862,1753747851712,-1588.16,0.00023013,2]
[375790864,1753747851722,-460.0,0.00023013,2]
[375790866,1753747851731,-460.0,0.00023013,2]
[375790868,1753747851741,-460.0,0.00023013,2]
[375790870,1753747851751,-545.4,0.00023013,2]
[375790872,1753747851766,-460.0,0.00023013,2]
[375790874,1753747851777,-460.0,0.00023013,2]
[375790876,1753747851786,-202.18,0.00023013,2]
[375790877,1753747851796,-460.0,0.00023013,2]
[375790879,1753747851806,-284.261084,0.00023013,7]
[375790881,1753747851815,-1618.75,0.00023013,2]
[375790883,1753747851826,-284.261084,0.00023013,7]
[375790885,1753747851836,-460.0,0.00023013,2]
[375790886,1753747851845,-460.0,0.00023013,2]
[375790888,1753747851855,-460.0,0.00023013,2]
[375790890,1753747851865,-460.0,0.00023013,2]
[375790892,1753747851874,-460.0,0.00023013,2]
[375790894,1753747851884,-460.0,0.00023013,2]
[375790895,1753747851894,-303.858414,0.00023013,7]
[375790897,1753747851903,-460.0,0.00023013,2]
[375790899,1753747851913,-303.858414,0.00023013,7]
[375790901,1753747851923,-859.79,0.00023013,2]
[375790902,1753747851935,-1195.35,0.00023013,2]
[375790904,1753747851945,-460.0,0.00023013,2]
[375790906,1753747851955,-649.936871,0.00023013,7]
[375790908,1753747851965,-555.83,0.00023013,2]
[375790909,1753747851975,-649.936871,0.00023013,7]
[375790911,1753747851985,-1351.63,0.00023013,2]
[375790913,1753747851995,-460.0,0.00023013,2]
[375790915,1753747852005,-3000.0,0.0002302,2]
[375790916,1753747852015,-929.0,0.00023026,2]
[375790918,1753747852024,-3000.0,0.0002303,2]
[375790920,1753747852035,-3000.0,0.0002304,2]
[375790922,1753747852045,-206.0,0.0002305,2]
[375790924,1753747852055,-3000.0,0.0002305,2]
[375790925,1753747852065,-3000.0,0.0002306,2]
[375790927,1753747852075,-3000.0,0.0002307,2]
[375790929,1753747852084,-500.0,0.00023074,2]
[375790931,1753747852094,-3418.507879,0.0002308,2]
[375790933,1753747852103,-929.0,0.000231,2]
[375790934,1753747852112,-465.9,0.00023152,5]
[375790936,1753747852122,-500.0,0.0002318,2]
[375790938,1753747852131,-929.0,0.00023244,2]
[375790940,1753747852141,-596.09032096,0.00023287,2]
[375790942,1753747852150,-460.0,0.00023287,2]
[375790944,1753747852160,-285.10850752,0.00023287,2]
[375790945,1753747852169,-2992.24,0.00023287,2]
[375790947,1753747852179,-460.0,0.00023287,2]
[375790949,1753747852189,-1408.18,0.00023287,2]
[375790951,1753747852199,-1292.36,0.00023287,2]
[375790953,1753747852208,-460.0,0.00023287,2]
[375790954,1753747852218,-963.32,0.00023287,2]
[375790956,1753747852228,-460.0,0.00023287,2]
[375790958,1753747852238,-487.71,0.00023287,2]
[375790960,1753747852247,-460.0,0.00023287,2]
[375790962,1753747852257,-1161.04,0.00023287,2]
[375790963,1753747852267,-1588.16,0.00023287,2]
[375790965,1753747852276,-460.0,0.00023287,2]
[375790967,1753747852287,-460.0,0.00023287,2]
[375790969,1753747852297,-460.0,0.00023287,2]
[375790971,1753747852307,-460.0,0.00023287,2]
[375790973,1753747852317,-545.4,0.00023287,2]
[375790974,1753747852327,-460.0,0.00023287,2]
[375790976,1753747852336,-460.0,0.00023287,2]
[375790978,1753747852345,-460.0,0.00023287,2]
[375790980,1753747852355,-1618.75,0.00023287,2]
[375790982,1753747852366,-460.0,0.00023287,2]
[375790983,1753747852375,-460.0,0.00023287,2]
[375790985,1753747852385,-530.52,0.00023287,2]
[375790987,1753747852397,-460.0,0.00023287,2]
[375790989,1753747852407,-460.0,0.00023287,2]
[375790991,1753747852417,-460.0,0.00023287,2]
[375790993,1753747852426,-460.0,0.00023287,2]
[375790994,1753747852436,-859.79,0.00023287,2]
[375790996,1753747852445,-1195.35,0.00023287,2]
[375790998,1753747852455,-460.0,0.00023287,2]
[375791000,1753747852464,-555.83,0.00023287,2]
[375791002,1753747852474,-1351.63,0.00023287,2]
[375791003,1753747852484,-460.0,0.00023287,2]
[375791005,1753747852497,-1126.60340077,0.000234,2]
[375791007,1753747852507,-179.86,0.00023453,2]
[375791012,1753747852638,-206.0,0.0002346,2]
[375791013,1753747852672,-383.0,0.00023461,2]
[375791014,1753747852682,-660.9,0.000235,7]
[375791015,1753747852692,-1000.0,0.00023521,2]
[375791016,1753747852702,-500.0,0.00023521,2]
[375791017,1753747852712,-151.812409,0.00023559,2]
[375791018,1753747852722,-460.0,0.00023561,2]
[375791019,1753747852732,-2992.24,0.00023561,2]
[375791020,1753747852742,-151.0,0.00023561,7]
[375791021,1753747852752,-460.0,0.00023561,2]
[375791022,1753747852762,-151.0,0.00023561,7]
[375791023,1753747852772,-151.0,0.00023561,7]
[375791024,1753747852783,-151.0,0.00023561,7]
[375791025,1753747852792,-1408.18,0.00023561,2]
[375791026,1753747852803,-1292.36,0.00023561,2]
[375791027,1753747852812,-174.74,0.00023561,2]
[375791028,1753747852822,-963.32,0.00023561,2]
[375791029,1753747852831,-460.0,0.00023561,2]
[375791030,1753747852841,-487.71,0.00023561,2]
[375791031,1753747852852,-460.0,0.00023561,2]
[375791032,1753747852862,-1161.04,0.00023561,2]
[375791033,1753747852871,-1588.16,0.00023561,2]
[375791034,1753747852881,-460.0,0.00023561,2]
[375791035,1753747852890,-383.44,0.00023561,2]
[375791036,1753747852900,-460.0,0.00023561,2]
[375791037,1753747852909,-460.0,0.00023561,2]
[375791038,1753747852919,-545.4,0.00023561,2]
[375791039,1753747852928,-545.19,0.00023561,2]
[375791040,1753747852938,-460.0,0.00023561,2]
[375791041,1753747852948,-460.0,0.00023561,2]
[375791042,1753747852957,-1618.75,0.00023561,2]
[375791043,1753747852967,-460.0,0.00023561,2]
[375791044,1753747852978,-460.0,0.00023561,2]
[375791045,1753747852987,-298.87,0.00023561,2]
[375791046,1753747852997,-460.0,0.00023561,2]
[375791047,1753747853007,-460.0,0.00023561,2]
[375791048,1753747853017,-859.79,0.00023561,2]
[375791049,1753747853027,-1195.35,0.00023561,2]
[375791050,1753747853037,-555.83,0.00023561,2]
[375791051,1753747853046,-1351.63,0.00023561,2]
[375791052,1753747853056,-460.0,0.00023561,2]
[375791053,1753747853067,-383.0,0.00023561,2]
[375791054,1753747853076,-383.0,0.00023575,2]
[375791055,1753747853086,-465.9,0.00023604,5]
[375791056,1753747853096,-515.35,0.00023628,5]
[375791057,1753747853105,-544.67,0.00023628,3]
[375791058,1753747853115,-1155.04694945,0.00023643,2]
[375791059,1753747853124,-542.92,0.00023651,7]
[375791060,1753747853134,-151.812409,0.00023671,6]
[375791061,1753747853143,-929.0,0.00023683,2]
[375791062,1753747853152,-515.35,0.00023728,4]
[375791063,1753747853162,-544.67333819,0.00023728,4]
[375791064,1753747853172,-542.92,0.00023751,4]
[375791065,1753747853181,-5914.41,0.000238,7]
[375791066,1753747853191,-1442.16,0.000238,7]
[375791067,1753747853200,-296.431544,0.000238,7]
[375791068,1753747853210,-296.431544,0.000238,7]
[375791069,1753747853219,-515.35,0.00023828,5]
[375791070,1753747853229,-460.0,0.00023835,2]
[375791071,1753747853239,-151.0,0.00023835,7]
[375791072,1753747853250,-2992.24,0.00023835,2]
[375791073,1753747853259,-460.0,0.00023835,2]
[375791074,1753747853269,-1408.18,0.00023835,2]
[375791075,1753747853280,-1292.36,0.00023835,2]
[375791076,1753747853289,-232.047717,0.00023835,7]
[375791077,1753747853300,-232.047717,0.00023835,7]
[375791078,1753747853309,-151.0,0.00023835,7]
[375791079,1753747853319,-963.32,0.00023835,2]
[375791080,1753747853328,-469.45,0.00023835,2]
[375791081,1753747853338,-487.71,0.00023835,2]
[375791082,1753747853348,-460.0,0.00023835,2]
[375791083,1753747853358,-151.0,0.00023835,7]
[375791084,1753747853368,-1161.04,0.00023835,2]
[375791085,1753747853378,-1588.16,0.00023835,2]
[375791086,1753747853388,-460.0,0.00023835,2]
[375791087,1753747853398,-460.0,0.00023835,2]
[375791088,1753747853408,-460.0,0.00023835,2]
[375791089,1753747853417,-545.4,0.00023835,2]
[375791090,1753747853427,-460.0,0.00023835,2]
[375791091,1753747853438,-228.6,0.00023835,2]
[375791092,1753747853448,-1618.75,0.00023835,2]
[375791093,1753747853458,-460.0,0.00023835,2]
[375791094,1753747853468,-209.57,0.00023835,2]
[375791095,1753747853480,-460.0,0.00023835,2]
[375791096,1753747853490,-460.0,0.00023835,2]
[375791097,1753747853500,-859.79,0.00023835,2]
[375791098,1753747853510,-1195.35,0.00023835,2]
[375791099,1753747853520,-555.83,0.00023835,2]
[375791100,1753747853531,-1351.63,0.00023835,2]
[375791101,1753747853540,-460.0,0.00023835,2]
[375791102,1753747853550,-542.92,0.00023851,4]
[375791103,1753747853560,-206.0,0.0002388,2]
[375791104,1753747853570,-515.35,0.00023928,6]
[375791105,1753747853580,-201.01196165,0.00023951,3]
[375791106,1753747853815,-460.0,0.00019178,2]
[375791107,1753747853825,-460.0,0.00019178,2]
[375791108,1753747853835,-460.0,0.00019178,2]
[375791109,1753747853844,-460.0,0.00019178,2]
[375791110,1753747853854,-462.21134424,0.00019451,2]
[375791111,1753747853864,-460.0,0.00019451,2]
[375791112,1753747853875,-460.0,0.00019452,2]
[375791113,1753747853885,-460.0,0.00019452,2]
[375791114,1753747853894,-460.0,0.00019452,2]
[375791115,1753747853904,-460.0,0.00019725,2]
[375791116,1753747853914,-460.0,0.00019999,2]
[375791117,1753747853924,-460.0,0.00019999,2]
[375791118,1753747853934,-460.0,0.00020273,2]
[375791119,1753747853943,-163.0,0.00021,4]
[375791120,1753747853953,-341.90803835,0.00023951,3]
[375791121,1753747853963,-151.812409,0.0002399,5]
[375791122,1753747853972,-250.91,0.00023993,2]
[375791123,1753747853981,-231.34820253,0.00024,7]
[375791124,1753747853991,-526.58819812,0.00024,7]
[375791125,1753747854001,-840.90880427,0.00024,7]
[375791126,1753747854012,-515.35,0.00024028,2]
[375791127,1753747854021,-542.95,0.00024051,6]
[375791128,1753747854033,-465.9,0.00024057,6]
[375791129,1753747854042,-1500.0,0.00024068,2]
[375791130,1753747854052,-151.0,0.000241,5]
[375791131,1753747854061,-1755.0,0.00024101,3]
[375791132,1753747854077,-172.0,0.00024101,3]
[375791133,1753747854087,-174.72074456,0.00024101,3]
[375791134,1753747854097,-160.0,0.00024101,3]
[375791135,1753747854106,-152.0,0.00024101,3]
[375791136,1753747854116,-160.0,0.00024101,3]
[375791137,1753747854125,-160.0,0.00024101,3]
[375791138,1753747854135,-162.30786059,0.00024101,3]
[375791139,1753747854144,-1755.0,0.00024101,3]
[375791140,1753747854153,-152.0,0.00024101,3]
[375791141,1753747854163,-1755.0,0.00024101,3]
[375791142,1753747854172,-1755.0,0.00024101,3]
[375791143,1753747854182,-1755.0,0.00024101,3]
[375791144,1753747854192,-154.0,0.00024101,3]
[375791145,1753747854201,-1755.0,0.00024101,3]
[375791146,1753747854210,-152.0,0.00024101,3]
[375791147,1753747854220,-212.2360704,0.00024101,3]
[375791148,1753747854230,-1755.0,0.00024101,3]
[375791149,1753747854239,-152.0,0.00024101,3]
[375791150,1753747854249,-1755.0,0.00024101,3]
[375791151,1753747854259,-152.0,0.00024101,3]
[375791152,1753747854268,-1755.0,0.00024101,3]
[375791153,1753747854278,-152.0,0.00024101,3]
[375791154,1753747854289,-1755.0,0.00024101,3]
[375791155,1753747854298,-152.0,0.00024101,3]
[375791156,1753747854308,-1755.0,0.00024101,3]
[375791157,1753747854318,-152.0,0.00024101,3]
[375791158,1753747854328,-1755.0,0.00024101,3]
[375791159,1753747854338,-152.0,0.00024101,3]
[375791160,1753747854349,-1755.0,0.00024101,3]
[375791161,1753747854358,-152.0,0.00024101,3]
[375791162,1753747854368,-1755.0,0.00024101,3]
[375791163,1753747854377,-152.0,0.00024101,3]
[375791164,1753747854387,-1755.0,0.00024101,3]
[375791165,1753747854397,-1755.0,0.00024101,3]
[375791166,1753747854410,-152.0,0.00024101,3]
[375791167,1753747854419,-325.0,0.00024101,3]
[375791168,1753747854429,-1755.0,0.00024101,3]
[375791169,1753747854439,-325.0,0.00024101,3]
[375791170,1753747854449,-1755.0,0.00024101,3]
[375791171,1753747854458,-152.0,0.00024101,3]
[375791172,1753747854469,-325.0,0.00024101,3]
[375791173,1753747854479,-1755.0,0.00024101,3]
[375791174,1753747854491,-152.0,0.00024101,3]
[375791175,1753747854501,-325.0,0.00024101,3]
[375791176,1753747854511,-1755.0,0.00024101,3]
[375791177,1753747854520,-152.0,0.00024101,3]
[375791178,1753747854531,-325.0,0.00024101,3]
[375791179,1753747854542,-1755.0,0.00024101,3]
[375791180,1753747854551,-152.0,0.00024101,3]
[375791181,1753747854563,-325.0,0.00024101,3]
[375791182,1753747854573,-1755.0,0.00024101,3]
[375791183,1753747854583,-152.0,0.00024101,3]
[375791184,1753747854593,-325.0,0.00024101,3]
[375791185,1753747854604,-1755.0,0.00024101,3]
[375791186,1753747854613,-152.0,0.00024101,3]
[375791187,1753747854623,-325.0,0.00024101,3]
[375791188,1753747854632,-460.0,0.00024109,2]
[375791189,1753747854642,-2992.24,0.00024109,2]
[375791190,1753747854652,-460.0,0.00024109,2]
[375791191,1753747854662,-1408.18,0.00024109,2]
[375791192,1753747854672,-1292.36,0.00024109,2]
[375791193,1753747854682,-963.32,0.00024109,2]
[375791194,1753747854692,-487.71,0.00024109,2]
[375791195,1753747854701,-1161.04,0.00024109,2]
[375791196,1753747854711,-1588.16,0.00024109,2]
[375791198,1753747854720,-460.0,0.00024109,2]
[375791199,1753747854730,-460.0,0.00024109,2]
[375791200,1753747854739,-460.0,0.00024109,2]
[375791201,1753747854750,-545.4,0.00024109,2]
[375791203,1753747854759,-436.98880764,0.00024109,2]
[375791205,1753747854769,-1618.75,0.00024109,2]
[375791207,1753747854779,-460.0,0.00024109,2]
[375791209,1753747854790,-436.08179533,0.00024109,2]
[375791211,1753747854800,-608.29,0.00024109,2]
[375791212,1753747854809,-859.79,0.00024109,2]
[375791213,1753747854819,-1195.35,0.00024109,2]
[375791214,1753747854829,-555.83,0.00024109,2]
[375791216,1753747854838,-1351.63,0.00024109,2]
[375791217,1753747854848,-460.0,0.00024109,2]
[375791218,1753747854858,-515.35,0.00024128,7]
[375791219,1753747854867,-1824.96746399,0.00024138,3]
[375791220,1753747854877,-325.0,0.00024138,3]
[375791221,1753747854887,-325.0,0.00024138,3]
[375791222,1753747854897,-326.05611235,0.00024138,3]
[375791223,1753747854907,-152.0,0.00024138,3]
[375791224,1753747854916,-152.0,0.00024138,3]
[375791225,1753747854925,-152.0,0.00024138,3]
[375791226,1753747854935,-152.0,0.00024138,3]
[375791227,1753747854944,-152.0,0.00024138,3]
[375791228,1753747854955,-152.0,0.00024138,3]